fUST/lending_fUST_20250302
["ID","MTS","AMOUNT","RATE_DAILY","PERIOD"]
[355008129,1740864654862,-507.8224891,0.00024931,2]
[355008130,1740864654873,-500.0,0.00024931,2]
[355008131,1740864654883,-500.0,0.00024931,2]
[355008132,1740864654893,-165389.76,0.00024931,2]
[355008133,1740864654903,-500.0,0.00024931,2]
[355008134,1740864654913,-500.0,0.00024931,2]
[355008135,1740864654923,-151.0,0.00024931,7]
[355008136,1740864654932,-559.72,0.00024931,2]
[355008137,1740864654942,-151.0,0.00024931,7]
[355008138,1740864654952,-151.0,0.00024931,7]
[355008139,1740864654963,-500.0,0.00024931,2]
[355008140,1740864654972,-3414.87,0.00024931,2]
[355008141,1740864654982,-271.109143,0.00024931,7]
[355008142,1740864654993,-19624.61182001,0.00024931,7]
[355008143,1740864655003,-500.0,0.00024931,2]
[355008144,1740864655014,-500.0,0.00024931,2]
[355008145,1740864655024,-1870.31,0.00024931,2]
[355008146,1740864655034,-500.0,0.00024931,2]
[355008147,1740864655044,-500.0,0.00024931,2]
[355008148,1740864655055,-747.64,0.00024931,2]
[355008149,1740864655065,-376.988901,0.00024931,7]
[355008150,1740864655076,-376.988901,0.00024931,7]
[355008151,1740864655087,-376.988901,0.00024931,7]
[355008152,1740864655097,-3778.02,0.00024931,2]
[355008153,1740864655107,-1808.03,0.00024931,2]
[355008154,1740864655118,-500.0,0.00024931,2]
[355008155,1740864655128,-694.15,0.00024931,2]
[355008156,1740864655140,-500.0,0.00024931,2]
[355008157,1740864655151,-500.0,0.00024931,2]
[355008158,1740864655161,-500.0,0.00024931,2]
[355008159,1740864655171,-376.988901,0.00024931,7]
[355008160,1740864655181,-376.988901,0.00024931,7]
[355008161,1740864655191,-376.988901,0.00024931,7]
[355008162,1740864655201,-500.0,0.00024931,2]
[355008163,1740864655211,-527.19,0.00024931,2]
[355008164,1740864655223,-4182.97,0.00024931,2]
[355008165,1740864655234,-500.0,0.00024931,2]
[355008166,1740864655243,-615.55,0.00024931,2]
[355008167,1740864655253,-500.0,0.00024931,2]
[355008168,1740864655264,-500.0,0.00024931,2]
[355008169,1740864655274,-284.623502,0.00024931,7]
[355008170,1740864655283,-500.0,0.00024931,2]
[355008171,1740864655293,-13466.73,0.00024931,2]
[355008172,1740864655304,-284.623502,0.00024931,7]
[355008173,1740864655525,-284.623502,0.00024931,7]
[355008174,1740864655545,-993.12,0.00024931,2]
[355008175,1740864655555,-500.0,0.00024931,2]
[355008176,1740864655565,-284.623502,0.00024931,7]
[355008177,1740864655574,-284.623502,0.00024931,7]
[355008178,1740864655584,-284.623502,0.00024931,7]
[355008179,1740864655595,-1737.79,0.00024931,2]
[355008180,1740864655605,-1059.69,0.00024931,2]
[355008181,1740864655614,-500.0,0.00024931,2]
[355008182,1740864655624,-1083.175398,0.00024931,7]
[355008183,1740864655633,-1083.175398,0.00024931,7]
[355008184,1740864655643,-971.54,0.00024931,2]
[355008185,1740864655652,-1083.175398,0.00024931,7]
[355008186,1740864655662,-1083.175398,0.00024931,7]
[355008187,1740864655671,-965.04,0.00024931,2]
[355008188,1740864655681,-500.0,0.00024931,2]
[355008189,1740864655691,-1020.21,0.00024931,2]
[355008190,1740864655700,-1083.175398,0.00024931,7]
[355008191,1740864655710,-1083.175398,0.00024931,7]
[355008192,1740864655720,-1083.175398,0.00024931,7]
[355008193,1740864655730,-1083.175398,0.00024931,7]
[355008194,1740864655740,-500.0,0.00024931,2]
[355008195,1740864655749,-319.1493919,0.00024931,2]
[355008196,1740864655758,-642.72,0.00024931,2]
[355008197,1740864655768,-1442.57,0.00024931,2]
[355008198,1740864655777,-500.0,0.00024931,2]
[355008199,1740864655787,-210.05031,0.00024931,7]
[355008200,1740864655797,-210.05031,0.00024931,7]
[355008201,1740864655807,-500.0,0.00024931,2]
[355008202,1740864655816,-210.05031,0.00024931,7]
[355008203,1740864655826,-1093.65,0.00024931,2]
[355008204,1740864655835,-500.0,0.00024931,2]
[355008205,1740864655844,-1182.47,0.00024931,2]
[355008206,1740864655854,-500.0,0.00024931,2]
[355008207,1740864655863,-210.05031,0.00024931,7]
[355008208,1740864655873,-210.05031,0.00024931,7]
[355008209,1740864655882,-210.05031,0.00024931,7]
[355008210,1740864655891,-500.0,0.00024931,2]
[355008211,1740864655900,-719.6,0.00024931,2]
[355008212,1740864655910,-500.0,0.00024931,2]
[355008213,1740864655919,-733.47387,0.00024931,7]
[355008214,1740864655929,-733.47387,0.00024931,7]
[355008215,1740864655939,-500.0,0.00024931,2]
[355008216,1740864655948,-1307.71,0.00024931,2]
[355008217,1740864655958,-500.0,0.00024931,2]
[355008218,1740864655968,-500.0,0.00024931,2]
[355008219,1740864655978,-733.47387,0.00024931,7]
[355008220,1740864655988,-500.0,0.00024931,2]
[355008221,1740864655998,-733.47387,0.00024931,7]
[355008222,1740864656007,-500.0,0.00024931,2]
[355008223,1740864656016,-720.18,0.00024931,2]
[355008224,1740864656026,-789.48,0.00024931,2]
[355008225,1740864656035,-500.0,0.00024931,2]
[355008226,1740864656045,-500.0,0.00024931,2]
[355008227,1740864656055,-1735.39,0.00024931,2]
[355008228,1740864656065,-500.0,0.00024931,2]
[355008229,1740864656074,-500.0,0.00024931,2]
[355008230,1740864656084,-904.05,0.00024931,2]
[355008231,1740864656093,-500.0,0.00024931,2]
[355008232,1740864656103,-500.0,0.00024931,2]
[355008233,1740864656112,-500.0,0.00024931,2]
[355008234,1740864656122,-500.0,0.00024931,2]
[355008235,1740864656132,-500.0,0.00024931,2]
[355008236,1740864656144,-500.0,0.00024931,2]
[355008237,1740864656156,-153.577231,0.00024931,7]
[355008238,1740864656165,-14273.26,0.00024931,2]
[355008239,1740864656176,-765.38,0.00024931,2]
[355008240,1740864656187,-500.0,0.00024931,2]
[355008241,1740864656196,-500.0,0.00024931,2]
[355008242,1740864656206,-1027.25,0.00024931,2]
[355008243,1740864656216,-787.62,0.00024931,2]
[355008244,1740864656227,-500.0,0.00024931,2]
[355008245,1740864656238,-500.0,0.00024931,2]
[355008246,1740864656248,-500.0,0.00024931,2]
[355008247,1740864656258,-500.0,0.00024931,2]
[355008248,1740864656268,-500.0,0.00024931,2]
[355008249,1740864656278,-6817.7,0.00024931,2]
[355008250,1740864656288,-500.0,0.00024931,2]
[355008251,1740864656298,-6214.88,0.00024931,2]
[355008252,1740864656308,-500.0,0.00024931,2]
[355008253,1740864656319,-500.0,0.00024931,2]
[355008254,1740864656328,-500.0,0.00024931,2]
[355008255,1740864656338,-500.0,0.00024931,2]
[355008256,1740864656348,-1215.69,0.00024931,2]
[355008257,1740864656358,-500.0,0.00024931,2]
[355008258,1740864656367,-500.0,0.00024931,2]
[355008259,1740864656377,-1082.98,0.00024931,2]
[355008260,1740864656387,-9894.4,0.00024931,2]
[355008261,1740864656397,-3066.62,0.00024931,2]
[355008262,1740864656407,-500.0,0.00024931,2]
[355008263,1740864656416,-724.36,0.00024931,2]
[355008264,1740864656426,-1015.03927294,0.00024931,2]
[355008265,1740864656436,-27412.46,0.00024931,2]
[355008266,1740864656445,-500.0,0.00024931,2]
[355008267,1740864656455,-500.0,0.00024931,2]
[355008268,1740864656465,-1011.0,0.00024931,2]
[355008269,1740864656475,-500.0,0.00024931,2]
[355008270,1740864656485,-1584.504549,0.00024931,7]
[355008271,1740864656495,-1584.504549,0.00024931,7]
[355008272,1740864656505,-1584.504549,0.00024931,7]
[355008273,1740864656515,-151.0,0.00024931,7]
[355008274,1740864656525,-151.0,0.00024931,7]
[355008275,1740864656534,-151.0,0.00024931,7]
[355008276,1740864656543,-3045.31,0.00024931,2]
[355008277,1740864656553,-1617.168073,0.00024931,7]
[355008278,1740864656563,-500.35337952,0.00024931,2]
[355008279,1740864656574,-1327.9,0.00024931,2]
[355008280,1740864656585,-1617.168073,0.00024931,7]
[355008281,1740864656596,-1584.504549,0.00024931,7]
[355008282,1740864656606,-1584.504549,0.00024931,7]
[355008283,1740864656616,-1584.504549,0.00024931,7]
[355008284,1740864656625,-1717.54,0.00024931,2]
[355008285,1740864656635,-1617.168073,0.00024931,7]
[355008286,1740864656644,-1617.168073,0.00024931,7]
[355008287,1740864656654,-500.0,0.00024931,2]
[355008288,1740864656664,-719.27,0.00024931,2]
[355008289,1740864656673,-681.04,0.00024931,2]
[355008290,1740864656683,-500.0,0.00024931,2]
[355008291,1740864656693,-500.0,0.00024931,2]
[355008292,1740864656702,-151.0,0.00024931,7]
[355008293,1740864656711,-610.90923007,0.00024931,2]
[355008294,1740864656720,-500.0,0.00024931,2]
[355008295,1740864656730,-151.0,0.00024931,7]
[355008296,1740864656739,-1954.69,0.00024931,2]
[355008297,1740864656749,-500.0,0.00024931,2]
[355008298,1740864656758,-500.0,0.00024931,2]
[355008299,1740864656767,-2953.42,0.00024931,2]
[355008300,1740864656777,-151.0,0.00024931,7]
[355008301,1740864656786,-443.268657,0.00024931,7]
[355008302,1740864656796,-151.0,0.00024931,7]
[355008303,1740864656806,-443.268657,0.00024931,7]
[355008304,1740864656815,-500.0,0.00024931,2]
[355008305,1740864656824,-443.268657,0.00024931,7]
[355008306,1740864656834,-1284.82,0.00024931,2]
[355008307,1740864656843,-443.268657,0.00024931,7]
[355008308,1740864656852,-443.268657,0.00024931,7]
[355008309,1740864656863,-443.268657,0.00024931,7]
[355008310,1740864656876,-151.0,0.00024931,7]
[355008311,1740864656886,-500.0,0.00024931,2]
[355008312,1740864656897,-500.0,0.00024931,2]
[355008313,1740864656907,-500.0,0.00024931,2]
[355008314,1740864656917,-1000.0,0.00024931,5]
[355008315,1740864656929,-500.0,0.00024931,2]
[355008316,1740864656939,-1492.77,0.00024931,2]
[355008317,1740864656950,-500.0,0.00024931,2]
[355008318,1740864656960,-500.0,0.00024931,2]
[355008319,1740864656971,-500.0,0.00024931,2]
[355008320,1740864656981,-500.0,0.00024931,2]
[355008321,1740864656990,-500.0,0.00024931,2]
[355008322,1740864657000,-2924.88,0.00024931,2]
[355008323,1740864657009,-877.806065,0.00024931,7]
[355008324,1740864657018,-877.806065,0.00024931,7]
[355008325,1740864657027,-877.806065,0.00024931,7]
[355008326,1740864657037,-500.0,0.00024931,2]
[355008327,1740864657046,-877.806065,0.00024931,7]
[355008328,1740864657056,-877.806065,0.00024931,7]
[355008329,1740864657065,-877.806065,0.00024931,7]
[355008330,1740864657075,-500.0,0.00024931,2]
[355008331,1740864657085,-537.64,0.00024931,2]
[355008332,1740864657094,-500.0,0.00024931,2]
[355008333,1740864657104,-5643.94,0.00024931,2]
[355008334,1740864657113,-500.0,0.00024931,2]
[355008335,1740864657123,-500.0,0.00024931,2]
[355008336,1740864657132,-500.0,0.00024931,2]
[355008337,1740864657145,-537.93,0.00024931,2]
[355008338,1740864657154,-183.823705,0.00024931,7]
[355008339,1740864657164,-183.823705,0.00024931,7]
[355008340,1740864657173,-183.823705,0.00024931,7]
[355008341,1740864657183,-500.0,0.00024931,2]
[355008342,1740864657194,-500.0,0.00024931,2]
[355008343,1740864657203,-9295.32,0.00024931,2]
[355008344,1740864657213,-183.823705,0.00024931,7]
[355008345,1740864657225,-183.823705,0.00024931,7]
[355008346,1740864657235,-673.23,0.00024931,2]
[355008347,1740864657244,-183.823705,0.00024931,7]
[355008348,1740864657254,-500.0,0.00024931,2]
[355008349,1740864657263,-500.0,0.00024931,2]
[355008350,1740864657273,-500.0,0.00024931,2]
[355008351,1740864657282,-500.0,0.00024931,2]
[355008352,1740864657292,-500.0,0.00024931,2]
[355008353,1740864657302,-500.0,0.00024931,2]
[355008354,1740864657312,-980.77,0.00024931,2]
[355008355,1740864657322,-397.375946,0.00024931,7]
[355008356,1740864657332,-397.375946,0.00024931,7]
[355008357,1740864657341,-397.375946,0.00024931,7]
[355008358,1740864657351,-500.0,0.00024931,2]
[355008359,1740864657361,-524.175367,0.00024931,2]
[355008360,1740864657371,-1224.87,0.00024931,2]
[355008361,1740864657381,-1850.81,0.00024931,2]
[355008362,1740864657390,-500.0,0.00024931,2]
[355008363,1740864657399,-397.375946,0.00024931,7]
[355008364,1740864657409,-397.375946,0.00024931,7]
[355008365,1740864657418,-397.375946,0.00024931,7]
[355008366,1740864657428,-966.84,0.00024931,2]
[355008367,1740864657438,-160.0,0.00024931,7]
[355008368,1740864657448,-500.0,0.00024931,2]
[355008369,1740864657457,-500.0,0.00024931,2]
[355008370,1740864657467,-153.76715891,0.00024931,2]
[355008371,1740864657477,-517.46553476,0.00024931,2]
[355008372,1740864657486,-860.46,0.00024931,2]
[355008373,1740864657495,-500.0,0.00024931,2]
[355008374,1740864657505,-2952.27,0.00024931,2]
[355008375,1740864657514,-500.0,0.00024931,2]
[355008376,1740864657524,-728.04,0.00024931,2]
[355008377,1740864657534,-500.0,0.00024931,2]
[355008378,1740864657544,-500.0,0.00024931,2]
[355008379,1740864657554,-500.0,0.00024931,2]
[355008380,1740864657563,-500.0,0.00024931,2]
[355008381,1740864657572,-500.0,0.00024931,2]
[355008382,1740864657582,-500.0,0.00024931,2]
[355008383,1740864657592,-8607.52,0.00024931,2]
[355008384,1740864657601,-500.0,0.00024931,2]
[355008385,1740864657611,-500.0,0.00024931,2]
[355008386,1740864657620,-500.0,0.00024931,2]
[355008387,1740864657630,-500.0,0.00024931,2]
[355008388,1740864657640,-1417.78,0.00024931,2]
[355008389,1740864657650,-627.24,0.00024931,2]
[355008390,1740864657659,-151.0,0.00024931,7]
[355008391,1740864657668,-269.040221,0.00024931,7]
[355008392,1740864657678,-1971.43,0.00024931,2]
[355008393,1740864657688,-2225.73,0.00024931,2]
[355008394,1740864657698,-500.0,0.00024931,2]
[355008395,1740864657708,-500.0,0.00024931,2]
[355008396,1740864657717,-1679.93,0.00024931,2]
[355008397,1740864657728,-500.0,0.00024931,2]
[355008398,1740864657738,-500.0,0.00024931,2]
[355008399,1740864657749,-1116.8,0.00024931,2]
[355008400,1740864657758,-500.0,0.00024931,2]
[355008401,1740864657768,-1770.1,0.00024931,2]
[355008402,1740864657777,-543.07,0.00024931,2]
[355008403,1740864657787,-500.0,0.00024931,2]
[355008404,1740864657796,-500.0,0.00024931,2]
[355008405,1740864657806,-500.0,0.00024931,2]
[355008406,1740864657815,-500.0,0.00024931,2]
[355008407,1740864657826,-500.0,0.00024931,2]
[355008408,1740864657835,-1966.27,0.00024931,2]
[355008409,1740864657845,-500.0,0.00024931,2]
[355008410,1740864657933,-512.68758567,0.00024973,2]
[355008411,1740864657943,-500.0,0.00024973,2]
[355008412,1740864657952,-500.0,0.00024973,2]
[355008413,1740864657962,-500.0,0.00024973,2]
[355008414,1740864657971,-384.39116885,0.00024973,2]
[355008415,1740864657981,-500.0,0.00024973,2]
[355008416,1740864657990,-367.80974713,0.00024973,2]
[355008417,1740864657999,-500.0,0.00024973,2]
[355008418,1740864658011,-500.0,0.00024973,2]
[355008419,1740864658020,-163.75696149,0.00024973,2]
[355008420,1740864658030,-500.0,0.00024973,2]
[355008421,1740864658039,-500.0,0.00024973,2]
[355008422,1740864658048,-300.20962099,0.00024973,2]
[355008423,1740864658057,-500.0,0.00024973,2]
[355008424,1740864658067,-500.0,0.00024973,2]
[355008425,1740864658076,-198.68961882,0.00024973,2]
[355008426,1740864658085,-511.26437518,0.00024973,2]
[355008427,1740864658095,-267.74917364,0.00024973,2]
[355008428,1740864658104,-500.0,0.00024973,2]
[355008429,1740864658113,-501.49573493,0.00024973,2]
[355008430,1740864658123,-501.82626897,0.00024973,2]
[355008431,1740864658132,-501.75957197,0.00024973,2]
[355008432,1740864658143,-500.0,0.00024973,2]
[355008433,1740864658155,-500.0,0.00024973,2]
[355008434,1740864658165,-503.42715993,0.00024973,2]
[355008435,1740864658175,-500.0,0.00024973,2]
[355008436,1740864658185,-500.0,0.00024973,2]
[355008437,1740864658198,-500.0,0.00024973,2]
[355008438,1740864658208,-500.0,0.00024973,2]
[355008439,1740864658218,-504.34516954,0.00024973,2]
[355008440,1740864658229,-500.0,0.00024973,2]
[355008441,1740864658239,-500.0,0.00024973,2]
[355008442,1740864658248,-500.0,0.00024973,2]
[355008443,1740864658258,-500.0,0.00024973,2]
[355008444,1740864658267,-500.0,0.00024973,2]
[355008445,1740864658277,-500.0,0.00024973,2]
[355008446,1740864658286,-479.59262317,0.00024973,2]
[355008447,1740864658296,-500.0,0.00024973,2]
[355008448,1740864658305,-166.48973665,0.00024973,2]
[355008449,1740864658315,-601.26755221,0.00024973,2]
[355008450,1740864658324,-581.54249387,0.00024973,2]
[355008451,1740864658333,-500.0,0.00024973,2]
[355008452,1740864658343,-500.0,0.00024973,2]
[355008453,1740864658353,-500.0,0.00024973,2]
[355008454,1740864658364,-500.0,0.00024973,2]
[355008455,1740864658374,-500.0,0.00024973,2]
[355008456,1740864658383,-500.0,0.00024973,2]
[355008457,1740864658393,-500.0,0.00024973,2]
[355008458,1740864658402,-271.35559,0.00024973,7]
[355008459,1740864658411,-271.35559,0.00024973,7]
[355008460,1740864658421,-561.07552,0.00024973,7]
[355008461,1740864658430,-561.07552,0.00024973,7]
[355008462,1740864658440,-194.970556,0.00024973,7]
[355008463,1740864658449,-194.970556,0.00024973,7]
[355008464,1740864658459,-151.0,0.00024973,7]
[355008465,1740864658469,-151.0,0.00024973,7]
[355008466,1740864658478,-220.38105167,0.00024986,2]
[355008467,1740864658488,-414.11,0.00025,7]
[355008468,1740864658497,-2167.92,0.00025,2]
[355008469,1740864658507,-3816.04965846,0.00025,2]
[355008470,1740864658517,-2372.55,0.00025,2]
[355008471,1740864658526,-3999.99,0.00025,2]
[355008472,1740864658535,-3999.99,0.00025,2]
[355008473,1740864658545,-4000.02,0.00025,2]
[355008474,1740864658555,-315.0,0.00025,3]
[355008475,1740864658564,-350.0,0.00025,3]
[355008476,1740864658574,-800.0,0.00025017,2]
[355008477,1740864658583,-56246.8008627,0.0002506,2]
[355008478,1740864658592,-151.0,0.0002506,7]
[355008479,1740864658602,-267.226842,0.0002506,7]
[355008480,1740864658611,-267.226842,0.0002506,7]
[355008481,1740864658620,-194.435715,0.0002506,7]
[355008482,1740864658630,-194.435715,0.0002506,7]
[355008483,1740864658639,-733.47387,0.0002506,7]
[355008484,1740864658648,-733.47387,0.0002506,7]
[355008485,1740864658658,-1584.504549,0.0002506,7]
[355008486,1740864658668,-151.0,0.0002506,7]
[355008487,1740864658677,-1617.168073,0.0002506,7]
[355008488,1740864658686,-1584.504549,0.0002506,7]
[355008489,1740864658695,-1617.168073,0.0002506,7]
[355008490,1740864658704,-151.0,0.0002506,7]
[355008491,1740864658713,-265.036978,0.0002506,7]
[355008492,1740864658722,-443.268657,0.0002506,7]
[355008493,1740864658732,-443.268657,0.0002506,7]
[355008494,1740864658742,-877.806065,0.0002506,7]
[355008495,1740864658751,-877.806065,0.0002506,7]
[355008496,1740864658760,-183.823705,0.0002506,7]
[355008497,1740864658769,-183.823705,0.0002506,7]
[355008498,1740864658778,-397.375946,0.0002506,7]
[355008499,1740864658788,-397.375946,0.0002506,7]
[355008500,1740864658797,-3000.0,0.00025105,2]
[355008501,1740864658806,-220.38105167,0.00025123,2]
[355008502,1740864658815,-166.1,0.0002519,2]
[355008503,1740864658824,-420.0,0.00025203,2]
[355008504,1740864658833,-309.31848964,0.00025204,2]
[355008505,1740864658843,-151.0,0.00025204,2]
[355008506,1740864658852,-160.0,0.00025204,2]
[355008507,1740864658861,-503.21789531,0.00025205,2]
[355008508,1740864658871,-151.0,0.00025205,7]
[355008509,1740864658881,-151.0,0.00025205,7]
[355008510,1740864658890,-151.0,0.00025205,7]
[355008511,1740864658899,-171.968109,0.00025205,7]
[355008512,1740864658909,-171.968109,0.00025205,7]
[355008513,1740864658918,-151.0,0.00025205,7]
[355008514,1740864658927,-151.0,0.00025205,7]
[355008515,1740864658936,-151.0,0.00025205,7]
[355008516,1740864658946,-151.0,0.00025205,7]
[355008517,1740864658955,-151.0,0.00025205,7]
[355008518,1740864658964,-151.0,0.00025205,7]
[355008519,1740864658974,-151.0,0.00025205,7]
[355008520,1740864658983,-500.0,0.00025205,2]
[355008521,1740864658992,-513.18,0.00025205,2]
[355008522,1740864659001,-500.0,0.00025205,2]
[355008523,1740864659011,-827.9,0.00025205,2]
[355008524,1740864659020,-500.0,0.00025205,2]
[355008525,1740864659029,-500.0,0.00025205,2]
[355008526,1740864659038,-819.88,0.00025205,2]
[355008527,1740864659047,-735.22,0.00025205,2]
[355008528,1740864659056,-500.0,0.00025205,2]
[355008529,1740864659065,-500.0,0.00025205,2]
[355008530,1740864659074,-500.0,0.00025205,2]
[355008531,1740864659083,-500.0,0.00025205,2]
[355008532,1740864659092,-500.0,0.00025205,2]
[355008533,1740864659102,-527.89596878,0.00025205,2]
[355008534,1740864659111,-641.01,0.00025205,2]
[355008535,1740864659120,-1030.77,0.00025205,2]
[355008536,1740864659130,-500.0,0.00025205,2]
[355008537,1740864659139,-244.000706,0.00025205,7]
[355008538,1740864659152,-244.000706,0.00025205,7]
[355008539,1740864659161,-244.000706,0.00025205,7]
[355008540,1740864659170,-500.0,0.00025205,2]
[355008541,1740864659179,-500.0,0.00025205,2]
[355008542,1740864659189,-244.000706,0.00025205,7]
[355008543,1740864659198,-244.000706,0.00025205,7]
[355008544,1740864659208,-244.000706,0.00025205,7]
[355008545,1740864659217,-500.0,0.00025205,2]
[355008546,1740864659227,-500.0,0.00025205,2]
[355008547,1740864659237,-500.0,0.00025205,2]
[355008548,1740864659246,-500.0,0.00025205,2]
[355008549,1740864659256,-500.0,0.00025205,2]
[355008550,1740864659265,-624.32,0.00025205,2]
[355008551,1740864659275,-500.0,0.00025205,2]
[355008552,1740864659284,-834.01,0.00025205,2]
[355008553,1740864659294,-500.0,0.00025205,2]
[355008554,1740864659303,-500.0,0.00025205,2]
[355008555,1740864659313,-151.0,0.00025205,7]
[355008556,1740864659322,-151.0,0.00025205,7]
[355008557,1740864659332,-151.0,0.00025205,7]
[355008558,1740864659341,-500.0,0.00025205,2]
[355008559,1740864659351,-380.713519,0.00025205,7]
[355008560,1740864659360,-380.713519,0.00025205,7]
[355008561,1740864659370,-669.87,0.00025205,2]
[355008562,1740864659379,-500.0,0.00025205,2]
[355008563,1740864659388,-380.713519,0.00025205,7]
[355008564,1740864659397,-380.713519,0.00025205,7]
[355008565,1740864659406,-380.713519,0.00025205,7]
[355008566,1740864659415,-380.713519,0.00025205,7]
[355008567,1740864659425,-1865.669019,0.00025205,5]
[355008568,1740864659434,-1865.669019,0.00025205,5]
[355008569,1740864659443,-1865.669019,0.00025205,5]
[355008570,1740864659453,-1865.669019,0.00025205,5]
[355008571,1740864659462,-1865.669019,0.00025205,5]
[355008572,1740864659471,-1865.669019,0.00025205,5]
[355008573,1740864659480,-500.0,0.00025205,2]
[355008574,1740864659489,-500.0,0.00025205,2]
[355008575,1740864659498,-500.0,0.00025205,2]
[355008576,1740864659507,-500.0,0.00025205,2]
[355008577,1740864659518,-500.0,0.00025205,2]
[355008578,1740864659527,-500.0,0.00025205,2]
[355008579,1740864659536,-588.34,0.00025205,2]
[355008580,1740864659545,-1015.99,0.00025205,2]
[355008581,1740864659554,-271.35559,0.00025205,7]
[355008582,1740864659563,-271.35559,0.00025205,7]
[355008583,1740864659572,-271.35559,0.00025205,7]
[355008584,1740864659581,-271.35559,0.00025205,7]
[355008585,1740864659591,-271.35559,0.00025205,7]
[355008586,1740864659601,-271.35559,0.00025205,7]
[355008587,1740864659610,-500.0,0.00025205,2]
[355008588,1740864659621,-524.95,0.00025205,2]
[355008589,1740864659630,-561.07552,0.00025205,7]
[355008590,1740864659639,-561.07552,0.00025205,7]
[355008591,1740864659649,-561.07552,0.00025205,7]
[355008592,1740864659659,-561.07552,0.00025205,7]
[355008593,1740864659668,-194.970556,0.00025205,7]
[355008594,1740864659677,-561.07552,0.00025205,7]
[355008595,1740864659686,-194.970556,0.00025205,7]
[355008596,1740864659696,-561.07552,0.00025205,7]
[355008597,1740864659705,-194.970556,0.00025205,7]
[355008598,1740864659715,-194.970556,0.00025205,7]
[355008599,1740864659724,-194.970556,0.00025205,7]
[355008600,1740864659733,-194.970556,0.00025205,7]
[355008601,1740864659742,-738.67,0.00025205,2]
[355008602,1740864659751,-500.0,0.00025205,2]
[355008603,1740864659760,-500.0,0.00025205,2]
[355008604,1740864659769,-500.0,0.00025205,2]
[355008605,1740864659778,-500.0,0.00025205,2]
[355008606,1740864659787,-500.0,0.00025205,2]
[355008607,1740864659797,-581.72,0.00025205,2]
[355008608,1740864659806,-500.0,0.00025205,2]
[355008609,1740864659815,-500.0,0.00025205,2]
[355008610,1740864659824,-500.0,0.00025205,2]
[355008611,1740864659833,-1376.12,0.00025205,2]
[355008612,1740864659843,-1046.36,0.00025205,2]
[355008613,1740864659852,-500.0,0.00025205,2]
[355008614,1740864659861,-500.0,0.00025205,2]
[355008615,1740864659870,-151.0,0.00025205,7]
[355008616,1740864659879,-1565.61,0.00025205,2]
[355008617,1740864659888,-151.0,0.00025205,7]
[355008618,1740864659897,-151.0,0.00025205,7]
[355008619,1740864659907,-500.0,0.00025205,2]
[355008620,1740864659916,-1454.86,0.00025205,2]
[355008621,1740864659925,-500.0,0.00025205,2]
[355008622,1740864659934,-151.0,0.00025205,7]
[355008623,1740864659943,-151.0,0.00025205,7]
[355008624,1740864659952,-151.0,0.00025205,7]
[355008625,1740864659961,-926.6,0.00025205,2]
[355008626,1740864659970,-500.0,0.00025205,2]
[355008627,1740864659981,-151.0,0.00025205,7]
[355008628,1740864659991,-151.0,0.00025205,7]